Cogmind - Beta 11 @@@ ROGUE MODE // 2022.03.26 @ 08:49:44 Player: ldi (hl). (hl) Result: Escaped! Performance ------------- Evolutions (9) 4500 Regions Visited (20) 4000 Robots Destroyed (283) 1415 Value Destroyed (15034) 15034 Prototype IDs (52) 1040 Alien Tech Used (2) 400 Bonus (15948) 15948 TOTAL SCORE: 42337 Bonus ------- High Alert Combat Kills 2495 Follower Combat Kills 2727 Network Hubs Disabled 400 Met Imprinter 300 Met Zhirov 300 Built Enhanced Grunts 300 A7 Reached Mainframe 300 Met R17 at Cetus 500 Met R17 at Research 2000 Acquired SGEMP 2000 Delivered SGEMP 2000 Win 3000 Friendly Fire -374 Cogmind --------- Core Integrity 1532/1600 Matter 4/300 Energy 593/600 System Corruption 23% Temperature Cool (3) Movement Treading (305) Ox2 Location To Epsilon Eridani Parts ------- > --- POWER (2) -------- Quantum Reactor Reinforced Quantum Reactor > --- PROPULSION (2) --- Biometal Heavy Treads > --- UTILITY (15) ----- Advanced Heat Sink Experimental Cooling System 2N-1CE's Frost Array High-capacity Storage Unit Experimental Targeting Computer Light Regenerative Plating Medium Regenerative Plating Heavy Regenerative Plating SHELL Armor Experimental Thermal Shield > --- WEAPON (6) ------- Heavy Wave Gun Heavy Wave Gun Precision Phase Gun Cooled Phase Cannon Omega Cannon > --- INVENTORY (20) --- Micro Antimatter Reactor Quantum Reactor Armored Medium Treads Armored Heavy Treads Advanced Power Amplifier Advanced Heat Sink High-capacity Storage Unit Enhanced Quantum Rifle Compact HERF Cannon Nova Cannon Improved Matter Neutralizer Enhanced Nova Cannon Enhanced Nova Cannon KE Penetrator Tactical Quantum Warhead Advanced Remote Datajack Peak State ------------ > --- POWER ------------ Quantum Reactor Reinforced Quantum Reactor > --- PROPULSION ------- Biometal Heavy Treads > --- UTILITY ---------- Advanced Heat Sink Experimental Cooling System 2N-1CE's Frost Array High-capacity Storage Unit Experimental Targeting Computer Advanced Target Analyzer Advanced Phase Shifter Light Regenerative Plating Medium Regenerative Plating Heavy Regenerative Plating SHELL Armor Experimental Thermal Shield > --- WEAPON ----------- Heavy Wave Gun Heavy Wave Gun Precision Phase Gun Cooled Phase Cannon Enhanced Nova Cannon Enhanced Nova Cannon > --- INVENTORY -------- Micro Antimatter Reactor Quantum Reactor Armored Medium Treads Armored Heavy Treads Advanced Power Amplifier Advanced Heat Sink High-capacity Storage Unit Enhanced Quantum Rifle Compact HERF Cannon Nova Cannon Improved Matter Neutralizer KE Penetrator Omega Cannon Tactical Quantum Warhead Advanced Remote Datajack [Rating: 214] Favorites ----------- Power Heavy Antimatter Reactor Engine Ion Engine Power Core Fusion Compressor Reactor Heavy Antimatter Reactor Propulsion Armored Wheel Treads Centrium Heavy Treads Wheel Armored Wheel Utility High-capacity Storage Unit Device Experimental Heat Sink Storage High-capacity Storage Unit Processor Experimental Targeting Computer Hackware Improved Hacking Suite Protection SHELL Armor Weapon Variable Charge Gun Energy Gun Variable Charge Gun Energy Cannon Cooled Particle Cannon Ballistic Gun KE Penetrator Ballistic Cannon Omega Cannon Launcher Improved Grenade Launcher Special Weapon RU-N14's Throwing Claymores Build | -11 -10 -9 -9 -7 -6 -6 -6 -6 -6 -6 -5 -5 -5 -5 -4 -4 -3 -3 -2 -1 ------- Run | Scr Mat Mat Min Zio Pro Fac Ext Cet Arc Hub Fac Upp Upp Zhi Pro Fac Res Tes Res Acc Slots Evolved 18 | . . 2 . . . 6 . . . . 2 . . . . 2 2 . 2 2 Power 1 | . . . . . . . . . . . . . . . . . 1 . . . Propulsion . | . . . . . . . . . . . . . . . . . . . . . Utility 13 | . . . . . . 6 . . . . . . . . . 2 1 . 2 2 Weapon 4 | . . 2 . . . . . . . . 2 . . . . . . . . . Parts Attached 294 | 6 1 10 . 6 8 45 8 8 . 8 12 1 2 11 7 28 21 69 25 18 Power 39 | 1 . 1 . 1 1 4 1 2 . . 2 1 1 1 . . 5 14 2 2 Engine 10 | 1 . 1 . 1 1 3 1 . . . 1 1 . . . . . . . . Core 4 | . . . . . . 1 . . . . 1 . 1 . . . 1 . . . Reactor 25 | . . . . . . . . 2 . . . . . 1 . . 4 14 2 2 Propulsion 22 | 2 . 2 . . 1 5 1 1 . 1 . . . . 1 1 2 3 2 . Treads 9 | . . . . . . . . . . . . . . . 1 1 2 3 2 . Leg . | . . . . . . . . . . . . . . . . . . . . . Wheel 13 | 2 . 2 . . 1 5 1 1 . 1 . . . . . . . . . . Hover . | . . . . . . . . . . . . . . . . . . . . . Flight . | . . . . . . . . . . . . . . . . . . . . . Utility 123 | 1 1 1 . 2 1 18 6 4 . 3 5 . 1 4 2 15 8 31 14 6 Device 78 | . . 1 . 1 1 9 2 3 . 1 2 . . 4 1 9 5 23 11 5 Storage 8 | 1 1 . . 1 . 2 1 . . 1 1 . . . . . . . . . Processor 9 | . . . . . . 2 1 . . . . . . . . 2 1 2 . 1 Hackware 5 | . . . . . . 4 . . . . . . . . . . . . 1 . Protection 23 | . . . . . . 1 2 1 . 1 2 . 1 . 1 4 2 6 2 . Artifact . | . . . . . . . . . . . . . . . . . . . . . Weapon 110 | 2 . 6 . 3 5 18 . 1 . 4 5 . . 6 4 12 6 21 7 10 Energy Gun 46 | 2 . 3 . 1 2 13 . 1 . 1 . . . . 2 4 5 9 3 . Energy Cannon 25 | . . . . . . 1 . . . 2 3 . . 5 1 . . 6 1 6 Ballistic Gun 26 | . . 3 . 1 2 4 . . . 1 1 . . 1 . 8 . 1 3 1 Ballistic Cannon 1 | . . . . . . . . . . . . . . . . . . . . 1 Launcher 4 | . . . . . 1 . . . . . . . . . . . . 1 . 2 Special Weapon 8 | . . . . 1 . . . . . . 1 . . . 1 . 1 4 . . Impact Weapon . | . . . . . . . . . . . . . . . . . . . . . Slashing Weapon . | . . . . . . . . . . . . . . . . . . . . . Piercing Weapon . | . . . . . . . . . . . . . . . . . . . . . Special Melee Weapon . | . . . . . . . . . . . . . . . . . . . . . Unidentified Prototypes 32 | . . 1 . 1 . 4 . 2 . 1 1 . . 3 1 . . 15 2 1 Parts Lost 66 | . . 2 . . 1 12 2 . . 4 1 . 1 . 5 18 1 11 1 7 Power 7 | . . 1 . . . 2 . . . 1 . . . . . . . 3 . . Propulsion 6 | . . 1 . . 1 2 1 . . . . . . . . 1 . . . . Utility 27 | . . . . . . 3 1 . . 2 1 . 1 . 1 11 . 2 . 5 Weapon 26 | . . . . . . 5 . . . 1 . . . . 4 6 1 6 1 2 Highest Loss Streak 10 | . . 1 . . 1 5 2 . . 2 1 . 1 . 3 10 1 3 1 3 To Critical Strikes . | . . . . . . . . . . . . . . . . . . . . . Average Slot Usage (%) 87 | . 85 97 100 100 99 88 98 93 93 92 91 88 88 54 87 87 88 83 81 79 Engine 2 | . 14 10 11 11 11 4 6 4 . . 1 3 4 . . . . . . . Reactor 4 | . . . . . . . . 1 6 5 . . . 2 5 5 7 8 8 7 Treads 2 | . . . . . . . . . . . . . . . 3 5 4 4 4 4 Wheel 5 | . 28 21 22 22 22 12 12 6 6 6 5 5 5 5 1 . . . . . Device 15 | . . 9 11 11 11 18 16 20 20 18 10 11 11 10 11 18 16 19 14 19 Storage 8 | . 14 11 11 11 11 8 9 6 6 7 11 11 11 11 11 10 9 5 4 4 Processor 4 | . . . . . . 7 6 6 6 6 5 5 . . . 2 9 5 4 4 Hackware 4 | . . . . . . 7 13 13 13 10 5 5 5 5 5 5 4 3 1 . Protection 6 | . . . . . . . 4 6 6 8 9 5 10 11 11 8 5 5 17 16 Energy Gun 15 | . 28 23 33 24 24 20 26 26 26 19 . . . . 4 14 16 16 15 12 Energy Cannon 7 | . . . . . . . . . . 2 29 29 29 1 25 9 . 8 4 4 Ballistic Gun 5 | . . 20 11 19 17 5 . . . 2 4 5 5 . 1 5 10 . 4 6 Naked Turns . | . . . . . . . . . . . . . . . . . . . . . Heaviest Build 215 | 12 27 35 35 37 46 59 84 90 90 106 113 117 126 130 135 136 146 185 198 215 Greatest Support 80 | 20 20 24 24 24 24 28 22 28 28 28 28 28 28 28 80 80 80 80 75 75 Greatest Overweight (x) 43 | . 1 2 1 1 1 4 5 3 3 3 4 4 4 4 4 1 2 43 2 2 Average Overweight (x) 1 | . . 1 1 1 1 1 2 2 3 2 3 3 4 3 1 1 1 1 2 2 Largest Inventory Capacity 20 | 8 15 15 15 15 15 15 20 20 20 20 20 20 20 20 20 20 20 20 20 20 Average Capacity 18 | 6 13 15 15 15 15 15 15 20 20 20 20 20 20 20 20 20 20 20 20 20 Most Carried 20 | 2 11 15 14 15 15 15 20 20 20 20 20 20 20 20 20 20 20 20 20 19 Average Carried 17 | . 8 10 13 14 14 14 15 19 20 19 19 20 19 19 18 17 19 19 19 16 Final Capacity 20 | 8 15 15 15 15 15 15 20 20 20 20 20 20 20 20 20 20 20 20 20 20 Final Carried 20 | 2 11 12 14 15 15 15 20 20 20 20 20 20 20 20 18 20 20 20 20 17 Class Distribution -------------------- 45% | Scavenger-Executioner 15% | Gunner 8% | Executioner 5% | Pyromaniac-Executioner 4% | Scavenger-Mutant 4% | Scavenger-Tank 3% | Commander-Tank Dominant Class ---------------- Mutant | -10/Materials Gunner | -9/Materials Gunner | -9/Mines Gunner | -7/Zion Gunner | -6/Proximity Caves Gunner | -6/Factory Hacker-Gunner | -6/Extension Commander-Tank | -6/Cetus Commander-Tank | -6/Archives Scavenger-Tank | -6/Hub_04(d) Scavenger-Executioner | -5/Factory Scavenger-Executioner | -5/Upper Caves Scavenger-Executioner | -5/Upper Caves Mutant | -5/Zhirov Executioner | -4/Proximity Caves Scavenger-Executioner | -4/Factory Scavenger-Executioner | -3/Research Scavenger-Executioner | -3/Testing Scavenger-Executioner | -2/Research Scavenger-Executioner | -1/Access Resources | -11 -10 -9 -9 -7 -6 -6 -6 -6 -6 -6 -5 -5 -5 -5 -4 -4 -3 -3 -2 -1 ----------- Run | Scr Mat Mat Min Zio Pro Fac Ext Cet Arc Hub Fac Upp Upp Zhi Pro Fac Res Tes Res Acc Matter Collected 5385 | 178 19 302 24 47 154 648 151 90 . 124 177 245 80 . 327 575 503 788 478 475 Remotely . | . . . . . . . . . . . . . . . . . . . . . Salvage Created 14593 | . 54 732 148 . 313 1600 499 49 . 925 509 222 689 . 990 1974 414 3189 1552 734 Parts 638 | . 9 47 9 . 12 45 42 4 . 31 19 8 31 . 31 95 25 113 82 35 Haulers Intercepted 11 | . . 2 . . . 2 . . . 2 2 . . . . 1 . 2 . . Recyclers Shooed 3 | . . . . . . 3 . . . . . . . . . . . . . . Parts Field Recycled . | . . . . . . . . . . . . . . . . . . . . . Retrieved Matter . | . . . . . . . . . . . . . . . . . . . . . Parts Self-Destructed 76 | . . . . . 8 . . . . . . 6 31 . 31 . . . . . Prevented 5 | . . . . . . . . . . . . . 5 . . . . . . . Kills | -11 -10 -9 -9 -7 -6 -6 -6 -6 -6 -6 -5 -5 -5 -5 -4 -4 -3 -3 -2 -1 ------- Run | Scr Mat Mat Min Zio Pro Fac Ext Cet Arc Hub Fac Upp Upp Zhi Pro Fac Res Tes Res Acc Combat Hostiles Destroyed 226 | . 3 13 3 . 10 13 5 1 . 9 8 2 16 . 24 32 8 43 21 15 Melee 1 | . . . . . . . . . . . . . . . . 1 . . . . Guns 108 | . 3 13 3 . 2 8 5 1 . 3 1 . . . 2 22 5 16 16 8 Cannons 70 | . . . . . . . . . . 2 4 1 15 . 20 8 . 17 2 1 AOE 25 | . . . . . 7 . . . . 3 3 . . . . 1 3 4 . 4 Classes Destroyed 21 | . 1 7 1 . . 2 1 . . . . 2 1 . . 2 . 4 . . Worker 11 | . . 3 . . . 1 . . . 1 . . . . . . 2 3 . 1 Builder 16 | . . 1 . . . 1 5 . . 1 . . . . . . . 5 . 3 Hauler 11 | . . 2 . . . 2 . . . 2 2 . . . . 1 . 2 . . Recycler 7 | . . . . . . 5 . . . 1 . . . . . . . 1 . . Mechanic 2 | . . . . . . . . . . . . . . . . . . 1 . 1 Operator 3 | . . 1 . . . . 1 . . 1 . . . . . . . . . . Watcher 6 | . . . . . . . 2 . . 1 . . . . . 1 . . 2 . Swarmer 45 | . 3 . . . 3 . . . . 1 . . 8 . 15 7 4 . 4 . Grunt 65 | . . 10 2 . 6 6 1 1 . 5 7 . 6 . 6 . 3 8 . 4 Brawler 2 | . . 1 . . . . . . . . . . . . . . . 1 . . Duelist 4 | . . . 1 . 1 . . . . . . . . . . . . 1 . 1 Researcher 1 | . . . . . . . . . . . . . . . . . . 1 . . Sentry 22 | . . 2 . . . 1 4 . . 2 1 . 1 . 2 3 1 3 1 1 Specialist 14 | . . . . . . . . . . . . . . . . 8 . 3 1 2 Hunter 27 | . . . . . . 6 . . . 1 . 1 . . . 4 . 7 6 2 Programmer 36 | . . . . . . . . . . . . . 1 . . 8 . 16 7 4 Heavy 5 | . . . . . . . . . . . . . . . . 2 . . 2 1 Behemoth 2 | . . . . . . . . . . . . 1 . . 1 . . . . . Striker 2 | . . . . . . . . . . . . . . . . . . 2 . . Alpha 7 1 | . . . . . . . . . . . . . . . . . . 1 . . Protovariant G 1 | . . . . . . . . . . . . . . . . . . 1 . . Decomposer 1 | . . . . . . . . . . . . 1 . . . . . . . . Samaritan 1 | . . . . . . . . . . . . 1 . . . . . . . . Best Kill Streak 12 | . 3 7 3 . 7 4 4 1 . 9 8 1 7 . 7 12 3 9 7 8 Combat Bots Only 12 | . 3 7 3 . 7 2 2 1 . 3 8 1 7 . 7 12 3 6 7 5 Max Kills in Single Turn 9 | . 1 2 1 . 2 1 2 1 . 9 3 1 4 . 2 2 2 3 1 3 Gunslinging 1 | . . 1 . . . . . . . . . . . . . 1 . 1 . . Exploded 3 | . . . . . 2 . . . . 3 2 . . . . 1 2 1 . 1 Melee 1 | . . . . . . . . . . . . . . . . 1 . . . . Uniques/NPCs Destroyed . | . . . . . . . . . . . . . . . . . . . . . Combat | -11 -10 -9 -9 -7 -6 -6 -6 -6 -6 -6 -5 -5 -5 -5 -4 -4 -3 -3 -2 -1 -------- Run | Scr Mat Mat Min Zio Pro Fac Ext Cet Arc Hub Fac Upp Upp Zhi Pro Fac Res Tes Res Acc Damage Taken 25944 | . 134 461 131 . 735 1709 234 116 29 1085 206 139 323 . 2164 4990 227 6890 3247 3124 Core 2049 | . 30 86 22 . 126 331 16 . . 81 . . . . 55 240 . 790 204 68 Absorbed by Shields 2386 | . . . . . . . 113 36 . . . . . . . 973 236 950 . 78 Reduced by Siege Mode 216 | . . . . . . . . . . . . . . . . 163 . 44 9 . Regen/Repaired (Parts) 7411 | . . . . 203 . . . . . . . . . . . . . 3310 2225 1673 Core Remaining (%) 73 | 100 88 . . . 41 . . . . 49 . . . . 94 79 . 39 80 95 Volleys Fired 513 | . 10 39 6 1 18 56 21 5 3 24 9 5 12 . 40 67 21 98 38 40 Largest 6 | . 2 4 4 4 4 4 4 4 4 4 6 6 6 . 6 6 6 6 6 6 Hottest 999 | . 80 169 169 152 185 272 272 272 268 283 178 178 478 . 548 813 416 999 492 536 Shots Fired 2233 | . 20 146 24 4 54 212 85 20 12 88 34 30 71 . 193 316 93 484 213 134 Gun 1615 | . 20 146 24 4 48 212 85 20 12 71 5 5 12 . 22 258 91 308 181 91 Cannon 573 | . . . . . . . . . . 17 25 25 59 . 166 57 . 155 32 37 Launcher 12 | . . . . . 6 . . . . . . . . . . . . . . 6 Special 33 | . . . . . . . . . . . 4 . . . 5 1 2 21 . . Kinetic 430 | . . 76 6 2 9 51 . . . 12 5 5 12 . 20 109 52 3 37 31 Thermal 1758 | . 20 70 18 2 39 161 85 20 12 76 25 25 59 . 168 206 39 460 176 97 Explosive 45 | . . . . . 6 . . . . . 4 . . . 5 1 2 21 . 6 Electromagnetic . | . . . . . . . . . . . . . . . . . . . . . Robot Hit Streak 29 | . 4 9 9 . 6 14 14 5 5 14 15 10 9 . 17 29 11 25 25 17 Robot Miss Streak 7 | . 5 7 1 . 4 4 3 2 1 3 2 1 3 . 6 4 3 3 3 3 Penetration Max 1 | . . . . . . 1 . . . 1 . . . . . 1 . . 1 . Secondary Targets 19 | . . 3 1 . 1 1 1 . . 1 . . . . . 5 2 2 1 1 Max Gunslinging Chain 1 | . . 1 1 . 1 1 1 . . 1 . . . . . 1 1 1 1 1 Shots Hit Robots 1379 | . 7 85 19 . 32 150 47 12 10 70 19 15 18 . 102 199 57 330 143 64 Core Hits 608 | . 3 40 7 . 20 70 23 7 5 42 20 7 17 . 40 66 21 122 56 42 Critical Kills 9 | . . . . . . . . . . . . 1 1 . 1 3 . 1 1 1 Critical Parts Destroyed 8 | . . 1 . . . . . . . 1 . . . . . 4 . . 2 . Critical Strikes 57 | . . 2 . . . 15 6 . 1 3 . 1 1 . 1 7 1 10 8 1 Burn 36 | . . 1 . . . 15 6 . 1 2 . . . . . . . 6 5 . Meltdown 5 | . . . . . . . . . . . . 1 1 . 1 . . 1 . 1 Destroy 13 | . . 1 . . . . . . . 1 . . . . . 7 1 . 3 . Sever 3 | . . . . . . . . . . . . . . . . . . 3 . . Melee Attacks . | . . . . . . . . . . . . . . . . . . . . . Impact . | . . . . . . . . . . . . . . . . . . . . . Slashing . | . . . . . . . . . . . . . . . . . . . . . Piercing . | . . . . . . . . . . . . . . . . . . . . . Sneak Attacks . | . . . . . . . . . . . . . . . . . . . . . Combat Hostiles . | . . . . . . . . . . . . . . . . . . . . . Follow-up Attacks . | . . . . . . . . . . . . . . . . . . . . . Damage Inflicted 44606 | . 66 946 260 . 1280 2930 1283 297 266 2854 1169 432 900 . 3792 5810 1713 12615 4603 3390 Guns 24742 | . 66 946 260 . 522 2930 1209 297 266 1242 47 22 22 . 153 4427 1246 5776 3789 1522 Cannons 11287 | . . . . . . . . . . 351 354 410 878 . 2950 1197 . 4017 814 316 Explosions 7451 | . . . . . 758 . 74 . . 1261 612 . . . 489 134 396 2175 . 1552 Melee . | . . . . . . . . . . . . . . . . . . . . . Ramming 25 | . . . . . . . . . . . . . . . . 16 . 9 . . Kinetic 4580 | . . 434 72 . 67 576 . . . 209 47 22 22 . 133 1396 698 . 562 342 Thermal 31707 | . 66 512 188 . 549 2354 1283 297 266 1393 354 410 878 . 2970 4309 548 9793 4041 1496 Explosive 5941 | . . . . . 664 . . . . . 612 . . . 489 53 396 2175 . 1552 Electromagnetic 1252 | . . . . . . . . . . 1252 . . . . . . . . . . Impact . | . . . . . . . . . . . . . . . . . . . . . Slashing 1101 | . . . . . . . . . . . 156 . . . 200 36 71 638 . . Piercing . | . . . . . . . . . . . . . . . . . . . . . Highest Corruption 27 | . . . . . . 3 3 3 3 3 3 3 4 4 4 6 . 27 8 23 Average Corruption 6 | . . . . . . 2 3 3 3 3 2 3 3 4 4 4 . 11 5 12 Corruption Purged . | . . . . . . . . . . . . . . . . . . . . . Corruption Blocked . | . . . . . . . . . . . . . . . . . . . . . Effects 232 | . . . . . . 13 16 7 1 5 1 6 7 5 23 17 . 95 20 16 Message Errors 64 | . . . . . . 6 6 1 . . 1 2 2 2 4 4 . 24 6 6 Matter Fused 43 | . . . . . . 3 5 . . 1 . 1 3 1 3 4 . 15 3 4 Heat Flow Errors 30 | . . . . . . . 3 1 . 3 . 1 . 1 5 . . 12 3 1 Energy Discharges 22 | . . . . . . . . 1 . 1 . . . 1 5 4 . 7 2 1 Parts Rejected 4 | . . . . . . . . . . . . . . . . . . 2 . 2 Data Loss (minor) 26 | . . . . . . 3 . 1 . . . 2 . . 4 3 . 11 1 1 Data Loss (major) 7 | . . . . . . 1 . 1 1 . . . . . . . . 4 . . Misfires 9 | . . . . . . . 1 1 . . . . . . 1 1 . 5 . . Alerts 5 | . . . . . . . 1 . . . . . 1 . . . . 3 . . Misdirections 2 | . . . . . . . . . . . . . . . . . . 2 . . Weapon Failures 20 | . . . . . . . . 1 . . . . 1 . 1 1 . 10 5 1 Overload Shots 74 | . . . . . . . . . . 3 . . 9 . 13 27 5 10 . 7 Effects 3 | . . . . . . . . . . . . . 1 . 1 . . 1 . . Energy Bleed 1 | . . . . . . . . . . . . . . . 1 . . . . . Heat Surge 2 | . . . . . . . . . . . . . 1 . . . . 1 . . Overflow Damage 582 | . . . . . 26 . 2 . . 234 . 19 16 . 12 49 11 164 . 49 Projectiles 207 | . . . . . . . . . . 14 . 19 16 . 12 49 11 86 . . Explosions 375 | . . . . . 26 . 2 . . 220 . . . . . . . 78 . 49 Melee . | . . . . . . . . . . . . . . . . . . . . . Knockbacks . | . . . . . . . . . . . . . . . . . . . . . Impact . | . . . . . . . . . . . . . . . . . . . . . Kinetic . | . . . . . . . . . . . . . . . . . . . . . Secondary . | . . . . . . . . . . . . . . . . . . . . . Self-Inflicted Damage 563 | . . . . . 112 . . . . 212 . . . . 20 21 92 . . 106 Shots 10 | . . . . . 2 . . . . 3 . . . . 1 1 1 . . 2 Rammed 3 | . . . . . . . . . . . . . . . . 1 . 2 . . Targets Rammed 4 | . . . . . . . . . . . . . . . . 2 . 2 . . Kicked . | . . . . . . . . . . . . . . . . . . . . . Crushed 1 | . . . . . . . . . . . . . . . . 1 . . . . Highest Temperature 847 | . 162 305 396 51 312 341 219 171 118 420 120 64 392 256 380 515 234 847 546 387 Average Temperature 121 | . 76 103 205 30 112 75 51 60 59 110 60 23 83 148 112 159 63 149 204 91 Received Heat Transfer 1935 | . 12 204 54 . 225 111 65 9 . 189 54 12 9 . 175 116 24 592 . 84 Effects 28 | . . . . . . 1 . . . 3 . . . . 1 6 . 7 8 2 Shutdowns 5 | . . . . . . . . . . . . . . . . 1 . 2 2 . Energy Bleed 2 | . . . . . . . . . . . . . . . . 2 . . . . Interference 12 | . . . . . . 1 . . . 3 . . . . . 3 . 1 4 . Matter Decay 4 | . . . . . . . . . . . . . . . 1 . . 1 1 1 Short Circuit 1 | . . . . . . . . . . . . . . . . . . 1 . . Damage (minor) 2 | . . . . . . . . . . . . . . . . . . . 1 1 Damage (core) 2 | . . . . . . . . . . . . . . . . . . 2 . . Siege Activations 19 | . . . . . . . . . . . . . . . 1 9 . 6 3 . Total Turns 340 | . . . . . . . . . . . . . . . 19 132 . 158 31 . Longest Duration 79 | . . . . . . . . . . . . . . . 19 28 . 79 20 . Robots Corrupted . | . . . . . . . . . . . . . . . . . . . . . Combat Hostiles . | . . . . . . . . . . . . . . . . . . . . . Parts Fried 3 | . . . . . . . . . . 3 . . . . . . . . . . Impact Corruptions . | . . . . . . . . . . . . . . . . . . . . . Robots Melted 24 | . . . . . 1 6 . . . 1 . 1 1 . 2 1 . 6 3 2 Combat Hostiles 22 | . . . . . 1 5 . . . 1 . 1 1 . 2 . . 6 3 2 Parts Melted 168 | . . 2 . . 3 30 3 . . 9 . 8 4 . 12 12 2 47 28 8 Heat Transferred 47472 | . 150 1248 458 . 1233 6273 2472 481 443 2527 481 518 955 . 3797 5377 901 13300 5143 1715 Parts Sabotaged . | . . . . . . . . . . . . . . . . . . . . . Parts Stolen . | . . . . . . . . . . . . . . . . . . . . . Parts Stripped . | . . . . . . . . . . . . . . . . . . . . . Power Chain Reactions 2 | . . . . . . . . . . 2 . . . . . . . . . . Missiles Intercepted . | . . . . . . . . . . . . . . . . . . . . . Alert | -11 -10 -9 -9 -7 -6 -6 -6 -6 -6 -6 -5 -5 -5 -5 -4 -4 -3 -3 -2 -1 ------- Run | Scr Mat Mat Min Zio Pro Fac Ext Cet Arc Hub Fac Upp Upp Zhi Pro Fac Res Tes Res Acc Peak Influence 2103 | . 160 456 247 . . 419 1232 1370 719 2103 1321 . . . . 618 619 920 710 1248 Initial 947 | . . 67 177 . . . 205 712 548 251 947 . . . . 17 324 182 507 408 Average 462 | . 64 267 217 . . 153 747 1061 685 944 1202 . . . . 267 393 357 523 843 Maximum Alert Level 5 | . . 2 1 . . 2 4 4 3 5 4 . . . . 2 2 3 3 4 Low Security (%) 25 | 100 100 27 41 . . 60 . . . . . . . . . 46 . 37 . . Level 1 23 | . . 55 58 . . 31 25 . . 16 . . . . . 25 47 16 22 . Level 2 31 | . . 16 . . . 8 11 . 35 15 . . . . . 28 52 32 76 38 Level 3 12 | . . . . . . . 57 51 64 32 13 . . . . . . 13 . 30 Level 4 7 | . . . . . . . 5 48 . 17 86 . . . . . . . . 31 Level 5 . | . . . . . . . . . . 17 . . . . . . . . . . High Security . | . . . . . . . . . . . . . . . . . . . . . Max Security . | . . . . . . . . . . . . . . . . . . . . . Squads Dispatched 65 | . 2 2 . . . 6 4 . . 10 3 . . . . 12 5 11 6 4 Investigation 7 | . . 1 . . . 2 1 . . 1 . . . . . . 1 1 . . Extermination 15 | . . . . . . 1 . . . . . . . . . 3 . 7 3 1 Reinforcement 30 | . 2 1 . . . 2 1 . . 6 1 . . . . 6 4 2 3 2 Assault 8 | . . . . . . . 2 . . 2 2 . . . . . . 1 . 1 Garrison 5 | . . . . . . 1 . . . 1 . . . . . 3 . . . . Intercept . | . . . . . . . . . . . . . . . . . . . . . Searches Triggered . | . . . . . . . . . . . . . . . . . . . . . Construction Impeded 1 | . . . . . . . . . . 1 . . . . . . . . . . Haulers Reinforced 6 | . . . . . . 2 . . . 1 1 . . . . . 2 . . . Active Scanning Responses . | . . . . . . . . . . . . . . . . . . . . . Cargo Convoy Interrupts 1 | . . . . . . . . . . . . . . . . 1 . . . . Stealth | -11 -10 -9 -9 -7 -6 -6 -6 -6 -6 -6 -5 -5 -5 -5 -4 -4 -3 -3 -2 -1 --------- Run | Scr Mat Mat Min Zio Pro Fac Ext Cet Arc Hub Fac Upp Upp Zhi Pro Fac Res Tes Res Acc Distress Signals 28 | . 2 . . . . . 1 2 1 4 . . . . . 5 4 1 8 . Communications Jammed 5 | . . . . . . . . . . . . . . . . . 5 . . . Distress Signals 5 | . . . . . . . . . . . . . . . . . 5 . . . Times Spotted 377 | . 11 17 3 . 10 24 25 14 3 30 12 2 16 . 25 49 19 59 40 18 Peak Tracking Total 11 | . 7 4 3 . 4 5 6 5 2 9 6 1 4 . 6 11 3 7 7 5 Tactical Retreats 21 | . 2 1 . . . 2 2 . . 2 . . 3 . 2 3 . . 4 . Traps | -11 -10 -9 -9 -7 -6 -6 -6 -6 -6 -6 -5 -5 -5 -5 -4 -4 -3 -3 -2 -1 ------- Run | Scr Mat Mat Min Zio Pro Fac Ext Cet Arc Hub Fac Upp Upp Zhi Pro Fac Res Tes Res Acc Traps Triggered 13 | . . 1 . . . 3 2 . . . 2 . . . . 1 3 1 . . Indirectly . | . . . . . . . . . . . . . . . . . . . . . Trap Hack Attempts . | . . . . . . . . . . . . . . . . . . . . . Triggered . | . . . . . . . . . . . . . . . . . . . . . Disarmed . | . . . . . . . . . . . . . . . . . . . . . Reprogrammed . | . . . . . . . . . . . . . . . . . . . . . Reused . | . . . . . . . . . . . . . . . . . . . . . Traps Extracted . | . . . . . . . . . . . . . . . . . . . . . Installed . | . . . . . . . . . . . . . . . . . . . . . Triggered 3 | . . . . . . . . . . . . . 1 . . 2 . . . . Exploded 1 | . . . . . . . . . . . . . . . . 1 . . . . Machines | -11 -10 -9 -9 -7 -6 -6 -6 -6 -6 -6 -5 -5 -5 -5 -4 -4 -3 -3 -2 -1 ---------- Run | Scr Mat Mat Min Zio Pro Fac Ext Cet Arc Hub Fac Upp Upp Zhi Pro Fac Res Tes Res Acc Machines Disabled 63 | . . 1 . . 4 1 4 4 2 11 1 . 2 . 7 9 1 11 1 4 Max in Single Turn 9 | . . 1 . . 3 1 2 1 . 9 1 . 1 . 4 5 1 1 1 1 Garrison Access 6 | . . . . . . 1 . . . 2 1 . . . . . . 1 . 1 Network Hub 2 | . . . . . . . . . . 2 . . . . . . . . . . Energy Cycler 1 | . . . . . . . 1 . . . . . . . . . . . . . Machines Sabotaged . | . . . . . . . . . . . . . . . . . . . . . Garrisons Compromised 1 | . . . . . . . . . . . . . . . . 1 . . . . Overloaded Fab Kills . | . . . . . . . . . . . . . . . . . . . . . Hacking | -11 -10 -9 -9 -7 -6 -6 -6 -6 -6 -6 -5 -5 -5 -5 -4 -4 -3 -3 -2 -1 --------- Run | Scr Mat Mat Min Zio Pro Fac Ext Cet Arc Hub Fac Upp Upp Zhi Pro Fac Res Tes Res Acc Machines Accessed 55 | . . . . . . 8 11 2 1 5 4 . . 5 . 2 3 9 2 3 Terminals 41 | . . . . . . 6 11 2 . 3 3 . . . . 2 3 7 2 2 Fabricators 2 | . . . . . . . . . . . 1 . . . . . . 1 . . Repair Stations . | . . . . . . . . . . . . . . . . . . . . . Recycling Units 1 | . . . . . . 1 . . . . . . . . . . . . . . Scanalyzers . | . . . . . . . . . . . . . . . . . . . . . Garrison Access 5 | . . . . . . 1 . . . 2 . . . . . . . 1 . 1 Total Hacks 203 | . . . . . . 29 42 4 5 14 8 . . 18 . 14 12 40 12 5 Successful 96 | . . . . . . 14 21 2 5 6 3 . . 18 . 6 4 13 4 . Failed 106 | . . . . . . 15 21 2 . 8 5 . . . . 7 8 27 8 5 Catastrophic 26 | . . . . . . 4 2 . . 1 3 . . . . 2 2 4 5 3 Database Lockouts 1 | . . . . . . . . . . . . . . . . 1 . . . . Manual 72 | . . . . 1 . 19 24 1 . . . . . . . 10 8 1 8 . Terminals 162 | . . . . . . 23 42 4 . 11 7 . . . . 14 12 33 12 4 Fabricators 7 | . . . . . . . . . . . 1 . . . . . . 6 . . Repair Stations . | . . . . . . . . . . . . . . . . . . . . . Recycling Units 5 | . . . . . . 5 . . . . . . . . . . . . . . Scanalyzers . | . . . . . . . . . . . . . . . . . . . . . Garrison Access 6 | . . . . . . 1 . . . 3 . . . . . . . 1 . 1 Terminal Hacks 81 | . . . . . . 11 13 2 5 5 3 . . 18 . 6 4 10 4 . Record 12 | . . . . . . . . 1 5 . . . . 6 . . . . . . Part Schematic 6 | . . . . . . . . . . . . . . 4 . 1 . 1 . . Robot Analysis 8 | . . . . . . . 3 . . . . . . 4 . . . 1 . . Prototype ID Bank 8 | . . . . . . 2 1 . . . . . . 4 . 1 . . . . Open Door 8 | . . . . . . 1 5 1 . . . . . . . . . 1 . . Open DSF 3 | . . . . . . 1 . . . . 1 . . . . . 1 . . . Level Access Points 4 | . . . . . . 1 . . . 1 . . . . . . 1 . 1 . Branch Access Points 4 | . . . . . . 1 . . . . . . . . . 1 1 . 1 . Emergency Access Points 1 | . . . . . . . . . . . . . . . . 1 . . . . Garrison Index 2 | . . . . . . . 1 . . 1 . . . . . . . . . . Alert Level 4 | . . . . . . 2 . . . 1 . . . . . . . 1 . . Unreport Threat 4 | . . . . . . . . . . . 1 . . . . . . 2 1 . Locate Traps 5 | . . . . . . 1 1 . . . . . . . . 1 1 . 1 . Dispatch Records 1 | . . . . . . . . . . . . . . . . 1 . . . . Recall Investigation 1 | . . . . . . . 1 . . . . . . . . . . . . . Recall Extermination 1 | . . . . . . . . . . . . . . . . . . 1 . . Registered Components 1 | . . . . . . . . . . 1 . . . . . . . . . . Registered Prototypes 2 | . . . . . . 1 . . . 1 . . . . . . . . . . Zone Layout 6 | . . . . . . 1 1 . . . 1 . . . . . . 3 . . Fabricator Hacks 2 | . . . . . . . . . . . . . . . . . . 2 . . Load Schematic 1 | . . . . . . . . . . . . . . . . . . 1 . . Build 1 | . . . . . . . . . . . . . . . . . . 1 . . Repair Station Hacks . | . . . . . . . . . . . . . . . . . . . . . Recycling Unit Hacks 1 | . . . . . . 1 . . . . . . . . . . . . . . Retrieve Components 1 | . . . . . . 1 . . . . . . . . . . . . . . Scanalyzer . | . . . . . . . . . . . . . . . . . . . . . Garrison Access Hacks 3 | . . . . . . 1 . . . 1 . . . . . . . 1 . . Seal Access 3 | . . . . . . 1 . . . 1 . . . . . . . 1 . . Unauthorized Hacks 9 | . . . . . . 1 8 . . . . . . . . . . . . . Terminals 8 | . . . . . . . 8 . . . . . . . . . . . . . Track 2 | . . . . . . . 2 . . . . . . . . . . . . . Assimilate 1 | . . . . . . . 1 . . . . . . . . . . . . . Botnet 1 | . . . . . . . 1 . . . . . . . . . . . . . Detonate 1 | . . . . . . . 1 . . . . . . . . . . . . . Disrupt 2 | . . . . . . . 2 . . . . . . . . . . . . . Operators 1 | . . . . . . . 1 . . . . . . . . . . . . . Fabricators . | . . . . . . . . . . . . . . . . . . . . . Repair Stations . | . . . . . . . . . . . . . . . . . . . . . Recycling Units 1 | . . . . . . 1 . . . . . . . . . . . . . . Mask 1 | . . . . . . 1 . . . . . . . . . . . . . . Scanalyzers . | . . . . . . . . . . . . . . . . . . . . . Garrison Access . | . . . . . . . . . . . . . . . . . . . . . Data Cores Recovered 2 | . . 1 . . . . . . . . . . . . . . . . . 1 Used . | . . . . . . . . . . . . . . . . . . . . . Hacking Detections 37 | . . . . . . 5 8 1 . 4 3 . . . . 2 2 7 2 3 Full Trace Events 4 | . . . . . . 1 1 . . 1 . . . . . . . 1 . . Feedback Events . | . . . . . . . . . . . . . . . . . . . . . Feedback Blocked . | . . . . . . . . . . . . . . . . . . . . . Robot Schematics Acquired 2 | . . . . . . . . . . . . . . . . . . 2 . . Robots Built . | . . . . . . . . . . . . . . . . . . . . . Authchips . | . . . . . . . . . . . . . . . . . . . . . Time . | . . . . . . . . . . . . . . . . . . . . . Total Robot Build Rating . | . . . . . . . . . . . . . . . . . . . . . Part Schematics Acquired 10 | . . . . . . . . . . . . . . 4 . 1 . 5 . . Parts Built 2 | . . . . . . . . . . . . . . . . . . 2 . . Authchips . | . . . . . . . . . . . . . . . . . . . . . Time 102 | . . . . . . . . . . . . . . . . . . 102 . . Total Part Build Rating 16 | . . . . . . . . . . . . . . . . . . 16 . . Parts Repaired . | . . . . . . . . . . . . . . . . . . . . . Time . | . . . . . . . . . . . . . . . . . . . . . Parts Recycled . | . . . . . . . . . . . . . . . . . . . . . Recycled Matter . | . . . . . . . . . . . . . . . . . . . . . Retrieved Matter . | . . . . . . . . . . . . . . . . . . . . . Retrieved Components 2 | . . . . . . 2 . . . . . . . . . . . . . . Parts Scanalyzed . | . . . . . . . . . . . . . . . . . . . . . Part Schematics Acquired . | . . . . . . . . . . . . . . . . . . . . . Parts Damaged . | . . . . . . . . . . . . . . . . . . . . . Bothacking | -11 -10 -9 -9 -7 -6 -6 -6 -6 -6 -6 -5 -5 -5 -5 -4 -4 -3 -3 -2 -1 ------------ Run | Scr Mat Mat Min Zio Pro Fac Ext Cet Arc Hub Fac Upp Upp Zhi Pro Fac Res Tes Res Acc Used RIF Installer . | . . . . . . . . . . . . . . . . . . . . . Robots Hacked . | . . . . . . . . . . . . . . . . . . . . . Non-combat . | . . . . . . . . . . . . . . . . . . . . . Combat . | . . . . . . . . . . . . . . . . . . . . . Robot Hacks Applied . | . . . . . . . . . . . . . . . . . . . . . Relay Couplers Released 13 | . . . . . . . . . . 2 1 . . . . . 3 4 . 3 Machine Destruction 10 | . . . . . . . . . . 2 1 . . . . . . 4 . 3 Programmers 3 | . . . . . . . . . . . . . . . . . 3 . . . Fabnet Peak Effective % . | . . . . . . . . . . . . . . . . . . . . . Robots Rewired 11 | . . . . . . . 11 . . . . . . . . . . . . . Allies Hacked . | . . . . . . . . . . . . . . . . . . . . . Hacks Repelled . | . . . . . . . . . . . . . . . . . . . . . Allies | -11 -10 -9 -9 -7 -6 -6 -6 -6 -6 -6 -5 -5 -5 -5 -4 -4 -3 -3 -2 -1 -------- Run | Scr Mat Mat Min Zio Pro Fac Ext Cet Arc Hub Fac Upp Upp Zhi Pro Fac Res Tes Res Acc Total Allies 27 | . . . . . . 2 17 5 . . . . . . . . . . . 3 Largest Group 16 | . . . . . . 2 16 15 11 8 . . . . . . . . . 3 Highest-Rated Group 909 | . . . . . . 192 791 909 799 513 . . . . . . . . . 374 Highest-Rated Ally 159 | . . . . . . 96 159 159 159 96 . . . . . . . . . 131 Total Orders 4 | . . . . . . . 1 1 1 1 . . . . . . . . . . AID 3 | . . . . . . . 1 1 1 . . . . . . . . . . . EXPLORE 1 | . . . . . . . . . . 1 . . . . . . . . . . Ally Attacks 401 | . . . . . . 22 109 106 30 129 . . . . . . . . . 5 Total Damage 10661 | . . . . . . 725 2362 2391 1094 4007 . . . . . . . . . 82 Kills 82 | . . . . . . 5 20 22 4 30 . . . . . . . . . 1 Allies Corrupted 1 | . . . . . . . . . . 1 . . . . . . . . . . Allies Melted . | . . . . . . . . . . . . . . . . . . . . . Intel | -11 -10 -9 -9 -7 -6 -6 -6 -6 -6 -6 -5 -5 -5 -5 -4 -4 -3 -3 -2 -1 ------- Run | Scr Mat Mat Min Zio Pro Fac Ext Cet Arc Hub Fac Upp Upp Zhi Pro Fac Res Tes Res Acc Robot Analysis Total 8 | . . . . . . . 3 . . . . . . 4 . . . 1 . . Derelict Logs Recovered 5 | . . . 1 1 . . . . . . . 1 2 . . . . . . . Drone Launches 2 | . . . . . . . . . . 2 . . . . . . . . . . Drone Recoveries . | . . . . . . . . . . . . . . . . . . . . . Exploration | -11 -10 -9 -9 -7 -6 -6 -6 -6 -6 -6 -5 -5 -5 -5 -4 -4 -3 -3 -2 -1 ------------- Run | Scr Mat Mat Min Zio Pro Fac Ext Cet Arc Hub Fac Upp Upp Zhi Pro Fac Res Tes Res Acc Turns Passed 14890 | 38 137 357 173 819 514 1138 700 323 78 408 413 475 403 287 1253 1553 1191 2869 1139 622 Spaces Moved 6793 | 34 91 187 143 758 420 714 434 198 47 201 245 277 214 180 496 493 443 774 290 154 Core 3 | 2 . . . . . . . . . . . . . . . . . 1 . . Treads 2506 | . . . . . . . . . . . . . . . 353 493 443 773 290 154 Legs . | . . . . . . . . . . . . . . . . . . . . . Wheels 4284 | 32 91 187 143 758 420 714 434 198 47 201 245 277 214 180 143 . . . . . Hover . | . . . . . . . . . . . . . . . . . . . . . Flight . | . . . . . . . . . . . . . . . . . . . . . Fastest Speed 50 | 50 80 95 105 105 105 100 115 130 145 130 145 145 160 145 160 240 240 225 305 305 Average Speed 175 | 78 91 102 105 105 105 114 117 142 145 144 145 155 160 145 216 240 240 285 308 305 Slowest Speed 2200 | 80 95 110 105 105 105 150 165 145 145 145 160 160 160 160 240 240 330 2200 320 305 Overloaded Moves . | . . . . . . . . . . . . . . . . . . . . . Propulsion Burnouts . | . . . . . . . . . . . . . . . . . . . . . Robots Hopped . | . . . . . . . . . . . . . . . . . . . . . Cave-ins Triggered 2 | . . . . . . . . . . . . . . . . . . . . 2 Teleports 1 | . . . . . . . . . . . . . . . . . . . 1 . Exploration Rate (%) 41 | 3 26 23 26 85 58 19 77 77 72 40 10 47 44 60 57 21 22 78 11 6 Regions Visited 20 Branch Regions 12 Pre-discovered Areas 6 | . . . . 3 . . . . . . . . . 3 . . . . . . Known Exits Taken 6 | . . . . . 1 1 . . . 1 . . . . . . 1 1 1 . Unknown Exits Taken 14 | 1 1 1 1 1 . . 1 1 1 . 1 1 1 1 1 1 . . . . Scrap Searched 7 | . . . . 2 2 . . . . . . 1 1 . 1 . . . . . Spaces Dug 30 | . . . . . . . . . . . . . . . . 11 2 9 . 8 Terrain Destroyed 1031 | . . . . . 29 . 1 . . 299 17 4 14 . 46 96 52 284 8 181 Melee . | . . . . . . . . . . . . . . . . . . . . . Projectile 158 | . . . . . . . . . . . 6 4 14 . 26 37 11 38 8 14 AOE 872 | . . . . . 29 . 1 . . 299 11 . . . 20 58 41 246 . 167 Terrain Rammed . | . . . . . . . . . . . . . . . . . . . . . Walls Destroyed . | . . . . . . . . . . . . . . . . . . . . . Machines Disabled . | . . . . . . . . . . . . . . . . . . . . . Actions | -11 -10 -9 -9 -7 -6 -6 -6 -6 -6 -6 -5 -5 -5 -5 -4 -4 -3 -3 -2 -1 --------- Run | Scr Mat Mat Min Zio Pro Fac Ext Cet Arc Hub Fac Upp Upp Zhi Pro Fac Res Tes Res Acc Total 8492 | 42 125 274 152 781 456 902 575 229 49 257 283 307 239 205 571 687 525 1165 443 225 Wait 451 | . 13 16 2 2 2 38 16 3 . 18 1 24 10 . 20 75 2 143 63 3 Move 6771 | 33 90 186 142 757 419 713 433 197 46 200 244 276 213 179 495 492 442 773 289 152 Hop . | . . . . . . . . . . . . . . . . . . . . . Pick Up 158 | 3 9 12 2 6 4 22 8 4 . 4 7 . 1 2 7 17 10 24 10 6 Fast Attach 136 | 5 1 3 . 1 2 19 5 5 . 1 6 1 1 11 . 12 11 38 12 2 Attach 82 | 1 . 4 . 1 2 13 1 1 . 2 4 . 1 . 6 13 5 13 4 11 Detach 15 | . 1 1 . 1 . 1 1 . . . . . . . . . 2 3 . 5 Swap 78 | . . 3 . 4 4 13 2 2 . 5 2 . . 1 1 3 5 18 10 5 Drop 192 | . 1 10 . 8 5 27 8 12 . 3 10 1 1 12 2 6 19 50 17 . Fire 513 | . 10 39 6 1 18 56 21 5 3 24 9 5 12 . 40 67 21 98 38 40 Melee . | . . . . . . . . . . . . . . . . . . . . . Ram 1 | . . . . . . . . . . . . . . . . . . 1 . . Kick . | . . . . . . . . . . . . . . . . . . . . . Crush 4 | . . . . . . . . . . . . . . . . 2 . 2 . . Escape Stasis 27 | . . . . . . . 16 . . . . . . . . . 8 2 . 1 Rewire 64 | . . . . . . . 64 . . . . . . . . . . . . . Trap . | . . . . . . . . . . . . . . . . . . . . . Miscellaneous . | . . . . . . . . . . . . . . . . . . . . . Route ------- -11/Scrapyard -10/Materials -9/Materials -9/Mines -7/Zion -6/Proximity Caves -6/Factory (discovered 8 exits: *Fac x4 / Low x2 / *Ext x2) -6/Extension (discovered 2 exits: *Fac / *Cet) -6/Cetus (discovered 2 exits: *Fac / *Arc) -6/Archives (discovered 2 exits: *Hub x2) -6/Hub_04(d) (discovered 4 exits: *Fac x4) -5/Factory (discovered 2 exits: *Fac / [*Upp]) -5/Upper Caves -5/Upper Caves -5/Zhirov -4/Proximity Caves -4/Factory (discovered 3 exits: *Res / Upp x2) -3/Research (discovered 6 exits: Res x3 / Arm / *Tes x2) -3/Testing -2/Research (discovered 5 exits: *Acc x3 / Qua x2) -1/Access (discovered 2 exits: *Sur / Com) To Epsilon Eridani History --------- Turn | Location | Event 13 | -11/Scrapyard | Discovered new exit (range 16) 39 | -11/Scrapyard | Entered Materials 164 | -10/Materials | Discovered new exit (range 15) 176 | -10/Materials | Entered another Materials area 176 | -9/Materials | Evolved 2 slots: Weapon x2 313 | -9/Materials | Destroyed 7 combat bots 512 | -9/Materials | Discovered new exit (range 10) 533 | -9/Materials | Entered Mines 679 | -9/Mines | Build established: Gunner 694 | -9/Mines | Learned location of 1 exit from Proximity Caves 702 | -9/Mines | A Derelict revealed a hidden shortcut to a safe place 706 | -9/Mines | Entered Zion 733 | -7/Zion | Found CR-A16's Pointy Stick 782 | -7/Zion | Found Prototype Special Weapon 782 | -7/Zion | Identified RU-N14's Throwing Claymores 787 | -7/Zion | Found RU-N14's Throwing Claymores 792 | -7/Zion | Found RU-N14's Throwing Claymores 794 | -7/Zion | Found RU-N14's Throwing Claymores 854 | -7/Zion | Given A8's code to call for help 936 | -7/Zion | Found GAL Module 994 | -7/Zion | Visited the Megawrench Repair Shop 994 | -7/Zion | Megawrench repaired 7 parts 1128 | -7/Zion | Learned location of Data Miner (-6) 1134 | -7/Zion | Received a hallucinogenic algorithm 1413 | -7/Zion | Learned Factory stockpile data 1417 | -7/Zion | Learned location of Warlord (-4) 1506 | -7/Zion | Discovered new exit (range 13) 1525 | -7/Zion | Entered Proximity Caves 1526 | -6/Proximity Caves | Identified exit to Factory 1609 | -6/Proximity Caves | Spotted B-75 Beast 1821 | -6/Proximity Caves | Attracted the attention of an 0b10 base 1821 | -6/Proximity Caves | Core integrity fell below 50% 1852 | -6/Proximity Caves | Destroyed 7 combat bots 2039 | -6/Proximity Caves | Entered Factory 2039 | -6/Factory | Evolved 6 slots: Utility x6 2221 | -6/Factory | Lost 4 parts (1n1u2w) 2401 | -6/Factory | Lost 5 parts (1p1u3w) 2540 | -6/Factory | Garrison activated, responded to threat 2756 | -6/Factory | Enhanced Grunt warped into view, answering call for help 2760 | -6/Factory | Enhanced Grunt warped into view, answering call for help 2761 | -6/Factory | Identified exit to Factory 2776 | -6/Factory | Build established: Hacker-Skirmisher 2935 | -6/Factory | Spotted B-75 Beast 2952 | -6/Factory | Allies destroyed B-75 Beast 2981 | -6/Factory | Identified exit to Lower Caves 2981 | -6/Factory | Identified exit to Extension 3177 | -6/Factory | Entered Extension 3177 | -6/Extension | Accompanied by 2 allies 3189 | -6/Extension | Disrupted transfer network 3239 | -6/Extension | Rescued a captive Derelict 3240 | -6/Extension | Rescued a captive Derelict 3324 | -6/Extension | Rescued A7 3345 | -6/Extension | Build established: Hacker-Gunner 3440 | -6/Extension | Rescued a captive Derelict 3440 | -6/Extension | Rescued a captive Derelict 3442 | -6/Extension | Spotted B-75 Beast 3449 | -6/Extension | Spotted B-75 Beast 3457 | -6/Extension | Allies destroyed B-75 Beast 3459 | -6/Extension | Allies destroyed B-75 Beast 3527 | -6/Extension | First assault squad dispatched 3560 | -6/Extension | Rescued a captive Derelict 3620 | -6/Extension | Energy Cycler disabled 3630 | -6/Extension | Rescued a captive Derelict 3836 | -6/Extension | Discovered exit to Factory (range 10) 3838 | -6/Extension | Discovered new exit (range 6) 3877 | -6/Extension | Entered Cetus 3877 | -6/Cetus | Accompanied by 15 allies (A7) 3882 | -6/Cetus | Acquired a Cetus Manufacturing Module code from A7 3895 | -6/Cetus | Spotted Cetus Guard 3895 | -6/Cetus | Spotted Cetus Guard 3896 | -6/Cetus | Spotted Cetus Guard 3897 | -6/Cetus | Spotted Cetus Guard 3902 | -6/Cetus | Allies destroyed Cetus Guard 3910 | -6/Cetus | Allies destroyed Cetus Guard 3910 | -6/Cetus | Allies destroyed Cetus Guard 3911 | -6/Cetus | Allies destroyed Cetus Guard 3977 | -6/Cetus | Started Cetus Manufacturing Module 3988 | -6/Cetus | Escorted A7 to Cetus Mainframe 4002 | -6/Cetus | Manufactured an Enhanced Grunt 4027 | -6/Cetus | Manufactured an Enhanced Grunt 4052 | -6/Cetus | Manufactured an Enhanced Grunt 4077 | -6/Cetus | Manufactured an Enhanced Grunt 4078 | -6/Cetus | Discovered new exit (range 15) 4102 | -6/Cetus | Manufactured an Enhanced Grunt 4103 | -6/Cetus | Spotted Cetus Guard 4103 | -6/Cetus | Spotted Cetus Guard 4106 | -6/Cetus | Spotted Cetus Guard 4108 | -6/Cetus | Spotted Cetus Guard 4114 | -6/Cetus | Found Prototype Device 4114 | -6/Cetus | Identified Exp. Thermal Shield 4116 | -6/Cetus | Allies destroyed Cetus Guard 4118 | -6/Cetus | Allies destroyed Cetus Guard 4118 | -6/Cetus | Allies destroyed Cetus Guard 4119 | -6/Cetus | Allies destroyed Cetus Guard 4122 | -6/Cetus | Discovered exit to Factory (range 15) 4134 | -6/Cetus | Met Revision 17 4200 | -6/Cetus | Entered Archives 4200 | -6/Archives | Accompanied by 11 allies (A7) 4201 | -6/Archives | Build established: Commander-Tank 4205 | -6/Archives | Received a hacking code to weaken MAIN.C 4237 | -6/Archives | Unable to access archive contents 4243 | -6/Archives | Discovered new exit (range 16) 4252 | -6/Archives | Unable to access archive contents 4257 | -6/Archives | Discovered new exit (range 13) 4278 | -6/Archives | Entered Hub_04(d) 4278 | -6/Hub_04(d) | Accompanied by 8 allies 4339 | -6/Hub_04(d) | Garrison activated, responded to threat 4628 | -6/Hub_04(d) | First assault squad dispatched 4673 | -6/Hub_04(d) | Network Hub disabled 4673 | -6/Hub_04(d) | Network Hub disabled 4674 | -6/Hub_04(d) | Core integrity fell below 50% 4684 | -6/Hub_04(d) | Spotted Lightning 4686 | -6/Hub_04(d) | Entered Factory 4686 | -5/Factory | Evolved 2 slots: Weapon x2 4718 | -5/Factory | Discovered new exit (range 9) 4768 | -5/Factory | Destroyed 8 combat bots 4986 | -5/Factory | First assault squad dispatched 5013 | -5/Factory | Build established: Scavenger-Executioner 5038 | -5/Factory | Discovered new exit (range 16) 5099 | -5/Factory | Entered Upper Caves 5175 | -5/Upper Caves | Learned Factory security intel 5505 | -5/Upper Caves | Spotted B-75 Beast 5510 | -5/Upper Caves | Destroyed B-75 Beast 5554 | -5/Upper Caves | Discovered new exit (range 12) 5574 | -5/Upper Caves | Entered another Upper Caves area 5614 | -5/Upper Caves | Attracted the attention of an 0b10 base 5651 | -5/Upper Caves | Learned Factory non-interactive machine intel 5657 | -5/Upper Caves | Destroyed 7 combat bots 5677 | -5/Upper Caves | Learned Factory security intel 5874 | -5/Upper Caves | Encountered a Warlord checkpoint 5911 | -5/Upper Caves | Attracted the attention of an 0b10 checkpoint 5961 | -5/Upper Caves | Discovered new exit (range 8) 5977 | -5/Upper Caves | Entered Zhirov 5977 | -5/Zhirov | Discovered new exit (range 3) 6007 | -5/Zhirov | Met Zhirov 6067 | -5/Zhirov | Found Alien Artifact 6067 | -5/Zhirov | Identified Integrated Reactor 6067 | -5/Zhirov | Installed Integrated Reactor, increased core energy generation (+10) 6088 | -5/Zhirov | Found Alien Artifact 6179 | -5/Zhirov | Zhirov requested help retrieving the SGEMP Prototype 6195 | -5/Zhirov | Learned location of Quarantine (-2) 6195 | -5/Zhirov | Learned location of Testing (-3) 6195 | -5/Zhirov | Learned location of Command (-1) 6264 | -5/Zhirov | Entered Proximity Caves 6391 | -4/Proximity Caves | Attracted the attention of an 0b10 base 6585 | -4/Proximity Caves | Destroyed 7 combat bots 6879 | -4/Proximity Caves | Build established: Pyromaniac-Executioner 6920 | -4/Proximity Caves | Spotted B-86 Titan 6998 | -4/Proximity Caves | Destroyed B-86 Titan 7012 | -4/Proximity Caves | Lost 3 parts (3w) 7284 | -4/Proximity Caves | Build established: Executioner 7430 | -4/Proximity Caves | Discovered new exit (range 11) 7517 | -4/Proximity Caves | Entered Factory 7517 | -4/Factory | Evolved 2 slots: Utility x2 7519 | -4/Factory | Loaded intel: 205 non-interactive machine locations 7594 | -4/Factory | Spotted B-86 Titan 7966 | -4/Factory | Identified exit to Upper Caves 7966 | -4/Factory | Central database locked down 8030 | -4/Factory | Build established: Pyromaniac-Executioner 8324 | -4/Factory | Cargo convoy interrupted 8418 | -4/Factory | Noticed a derelict Sapper rigging charges 8446 | -4/Factory | Garrison activated, responded to threat 8682 | -4/Factory | Lost 10 parts (1n5u4w) 8712 | -4/Factory | Destroyed 12 combat bots 9019 | -4/Factory | Discovered new exit (range 8) 9070 | -4/Factory | Entered Research 9070 | -3/Research | Evolved 2 slots: Power x1, Utility x1 9218 | -3/Research | Spotted B-86 Titan 9270 | -3/Research | Revision forces began assault on 0b10 9295 | -3/Research | Identified exit to Armory 9295 | -3/Research | Identified exit to Testing 9295 | -3/Research | Identified exit to Research 9316 | -3/Research | Met up with Revision 17++ 9444 | -3/Research | Spotted B-86 Titan 9533 | -3/Research | Build established: Scavenger-Executioner 9770 | -3/Research | Research terminal network offline 10261 | -3/Research | Entered Testing 10286 | -3/Testing | Found Exp. Thermal Shield 10420 | -3/Testing | Found Prototype Protection 10420 | -3/Testing | Identified SHELL Armor 10428 | -3/Testing | Found Med. Regenerative Plating 10433 | -3/Testing | Found Prototype Protection 10438 | -3/Testing | Found Prototype Protection 10514 | -3/Testing | Found Prototype Ballistic Cannon 10744 | -3/Testing | Fabricated Cld. Antimatter Reactor (x2) 11140 | -3/Testing | Spotted PG-F2JME9QZX9 11163 | -3/Testing | Destroyed PG-F2JME9QZX9 11193 | -3/Testing | Found Exp. Targeting Computer 11217 | -3/Testing | Identified Lgt. Regenerative Plating 11390 | -3/Testing | Spotted Striker 11443 | -3/Testing | Spotted Striker 11530 | -3/Testing | Found Prototype Processor 11530 | -3/Testing | Identified Exp. Target Analyzer 11642 | -3/Testing | Spotted Alpha 7 11651 | -3/Testing | Destroyed Striker 11657 | -3/Testing | Core integrity fell below 50% 11666 | -3/Testing | Destroyed Striker 11673 | -3/Testing | System corruption reached 10% 11680 | -3/Testing | Destroyed Alpha 7 11709 | -3/Testing | Lost 3 parts (3w) 11727 | -3/Testing | Stole the SGEMP Prototype 11984 | -3/Testing | Found Prototype Device 11984 | -3/Testing | Identified Adv. EM Disruption Field 12162 | -3/Testing | Found Prototype Launcher 12162 | -3/Testing | Identified Tactical Quantum Warhead 12546 | -3/Testing | First assault squad dispatched 12607 | -3/Testing | Lost 3 parts (1p2w) 12832 | -3/Testing | Identified Hvy. Regenerative Plating 13038 | -3/Testing | Discovered exit to Research (range 9) 13130 | -3/Testing | Entered Research 13130 | -2/Research | Evolved 2 slots: Utility x2 13226 | -2/Research | Identified exit to Quarantine 13226 | -2/Research | Identified exit to Access 13286 | -2/Research | Build established: Executioner 13728 | -2/Research | Spotted B-90 Cyclops 13825 | -2/Research | Identified Transdimensional Reconstructor 13825 | -2/Research | Warped through subspace 13950 | -2/Research | Build established: Scavenger-Executioner 13967 | -2/Research | Destroyed 7 combat bots 14269 | -2/Research | Entered Access 14269 | -1/Access | Evolved 2 slots: Utility x2 14270 | -1/Access | Loaded intel: 104 machine locations 14270 | -1/Access | Loaded intel: 109 trap records 14270 | -1/Access | Identified exit to Surface 14270 | -1/Access | Discovered exit to Surface (range 79) 14270 | -1/Access | Identified exit to Command 14270 | -1/Access | Discovered exit to Command (range 87) 14270 | -1/Access | Delivered the SGEMP Prototype to Zhirov 14270 | -1/Access | Zhirov transferred Access data 14486 | -1/Access | Zhirov warped through subspace 14658 | -1/Access | System corruption reached 10% 14835 | -1/Access | Crushed by falling debris 14854 | -1/Access | Crushed by falling debris 14884 | -1/Access | Identified Omega Cannon 14885 | -1/Access | Lost 3 parts (2u1w) 14891 | *** | Escaped! Last Messages --------------- 14804_ 8F2ZCYA0BER#UWPO0UI0OTM 14820_ System corrupted: Matter fused (-9). 14835_ The unstable cave ceiling collapses. 14835_ Crushed by falling debris. 14835_ KE Penetrator destroyed. 14835_ System corrupted by crushing effect (+3). 14839_ 1W:FIZIZYV5ER EDL>U>#TJ9BYTYIHMN&WCZJYCD 14854_ The unstable cave ceiling collapses. 14854_ Crushed by falling debris. 14854_ Adv. Target Analyzer destroyed. 14854_ System corrupted by crushing effect (+1). 14854_ Adv. Phase Shifter destroyed. 14854_ System corrupted by crushing effect (+5). 14863_ The unstable cave ceiling collapses. 14864_ /FOT#0AV,PA#UT| UE=W00#N1DAF V:O 14866_ The unstable cave ceiling collapses. 14875_ Main Access Shell breached. 14884_ Identified Omega Cannon. 14887_ Sealed Heavy Doors breached. 14889_ System corrupted: Matter fused (-6). Map ----- +----------------------------------------------------+ | ################# " # # | ##### | | ################# # # ##### | | ################# # # ##### | | ####################### # ##### | | ####################### # ##### | | ####################### + ##### | | ####################### # ##### | | ### ####################### ################## | | # ####################### ##### ######### | | # ^ ######### | | # ^ ^ ######### | | # ^ #################+### ######### | | # ^ ^"F "" ###### = *## ########## | | + """"" # # ## ########## | | # """"" # #[[ ## ########## | | # # # ! ## ########## | | # # # ## ########## | | ### + # ## ########## | | ### ############################# ########## | | ### ####################; ###### ########## | | ### #################;## "####### ########## | | ### # """" " ########## | | ### # """" " ######### | | ### # """" """" " " ######### | | """ " " ######### | | """" " "@ " " ## ## | | """" " "" " " ! = ## ## | | """" " " " [ # ## | | ######+### """" """""" " ## ## | | # """" "" " "! ## ## | | * # """" """"T""" ## ### | | #####################"####### ## ### | | # # # # ####### ########## ## ### | | # # ########### ## ### | | +##### # # ## ########### ## ### | | ## ### | | =*= ## ### | | == [ ###+###### | | != * !!! [ | | % *!!! | | ]* % ###+###### | | | # | | ### # ######## # | | # " # # | | # # # """ # # | | # % """ # + | | # * ## " + # | | ## # #+## ########### | | % # ! # ####### | | + ####### | +----------------------------------------------------+ Best States ------------- Heat Dissipation 216 Energy Generation 75 Energy Capacity 950 Matter Stores 300 Matter Capacity 300 Sight Range 20 Robot Scan Range 16 Terrain Scan Range 20 Terrain Scan Density 85 Jamming Range 14 Base Temperature (-) 200 Armor Coverage 3750 Resistance: KI 25 Resistance: TH 30 Phase Shifting 15 Evasion (%) 55 Targeting Accuracy 12 Target Analysis 8 Recoil Reduction 2 Particle Charging 30 Offensive Hacking 12 Defensive Hacking 12 Item Schematics ----------------- Assault Drone Bay | -5/Zhirov | Free Exp. Heat Sink | -5/Zhirov | Free Exp. Optical Array | -5/Zhirov | Free Imp. Arc Thrower | -5/Zhirov | Free Huge Storage Unit | -4/Factory | Hacked Med. Regenerative Plating | -3/Testing | Hacked Gravity Flail | -3/Testing | Archive Nanosword | -3/Testing | Archive Exp. ECM Suite | -3/Testing | Archive Cld. Antimatter Reactor | -3/Testing | Archive Robot Schematics ------------------ A-27 Freighter | -3/Testing | Archive S-43 Plague | -3/Testing | Archive Fabricated ------------ Cld. Antimatter Reactor | x2 | -3/Testing Alien Tech Used ----------------- Integrated Reactor Transdimensional Reconstructor Achievements -------------- Pyromaniac Challenges ------------ None Game ------ Seed WaveHybridShearcannon Manual? 0 Play Time 03:51:47 Cumulative 538.3 hours Start 2022.03.26 @ 03:12:24 End 2022.03.26 @ 08:49:44 Sessions 1 Manual Loads 0 Difficulty Rogue Special Mode None Game No. 334 Rogue 334 Adventurer 0 Explorer 0 Win Type 0 Total 36 Types 24/1/6/5/0/0/0/0/0 Lore% 82 Gallery% 83 Achievement% 77 Wizard Run 0 Options --------- ASCII 1 Keyboard 0 Movement Numpad Keybinds 0 Fullscreen 1 Font 36/X11 Map View 76x50 Tactical HUD 1 Map Filters NONE Filters NONE Steam 1 RUN: e75b7756-94df-4522-9ab7-9f25eb4f85dc